[Event "Late-Titled-Tuesday-Blitz-January-30-2024"]
[Site "Chess.com"]
[Date "2024.01.30"]
[Round "9"]
[White "subham777"]
[Black "nikitadovbnya2008"]
[Result "1-0"]
[WhiteElo "2495"]
[BlackElo "2204"]
[TimeControl "180+1"]
[EndTime "15:45:53 PST"]
[Termination "subham777 won by resignation"]

1. e4 {[%clk 0:03:00.9]} 1... e5 {[%clk 0:02:59.1]} 2. Nf3 {[%clk 0:02:29.2]}
2... Nc6 {[%clk 0:02:56.7]} 3. Bc4 {[%clk 0:02:02.5]} 3... Nf6 {[%clk
0:02:55.3]} 4. d3 {[%clk 0:02:02]} 4... Bc5 {[%clk 0:02:54.7]} 5. c3 {[%clk
0:02:01.9]} 5... a6 {[%clk 0:02:49.6]} 6. Nbd2 {[%clk 0:02:00.7]} 6... O-O
{[%clk 0:02:47.2]} 7. Nf1 {[%clk 0:01:59.2]} 7... d6 {[%clk 0:02:46.1]} 8. Ng3
{[%clk 0:01:59]} 8... Be6 {[%clk 0:02:41.2]} 9. Bb3 {[%clk 0:01:58]} 9... Ba7
{[%clk 0:02:40.2]} 10. Bg5 {[%clk 0:01:57.4]} 10... h6 {[%clk 0:02:35.3]} 11.
Bh4 {[%clk 0:01:56.8]} 11... g5 {[%clk 0:02:32.7]} 12. Nxg5 {[%clk 0:01:56.2]}
12... hxg5 {[%clk 0:02:33.6]} 13. Bxg5 {[%clk 0:01:57.1]} 13... Bxf2+ {[%clk
0:02:17.4]} 14. Kxf2 {[%clk 0:01:44.1]} 14... Ng4+ {[%clk 0:02:12.2]} 15. Qxg4
{[%clk 0:01:44.2]} 15... Bxg4 {[%clk 0:02:11.9]} 16. Bxd8 {[%clk 0:01:44.6]}
16... Raxd8 {[%clk 0:02:11.1]} 17. h3 {[%clk 0:01:43.8]} 17... Be6 {[%clk
0:02:10.6]} 18. Ke3 {[%clk 0:01:39.7]} 18... Ne7 {[%clk 0:02:05.6]} 19. Raf1
{[%clk 0:01:37.3]} 19... Ng6 {[%clk 0:02:02.2]} 20. Nf5 {[%clk 0:01:33.2]} 20...
Nf4 {[%clk 0:01:58]} 21. g3 {[%clk 0:01:13.4]} 21... Nh5 {[%clk 0:01:48.3]} 22.
h4 {[%clk 0:00:58.2]} 22... Kh8 {[%clk 0:01:39.1]} 23. g4 {[%clk 0:00:54.5]}
23... Nf4 {[%clk 0:01:31.2]} 24. g5 {[%clk 0:00:49.5]} 24... Rg8 {[%clk
0:01:19.8]} 25. Nh6 {[%clk 0:00:42.5]} 25... Rgf8 {[%clk 0:01:16.5]} 26. Rxf4
{[%clk 0:00:36]} 26... exf4+ {[%clk 0:01:12.3]} 27. Kxf4 {[%clk 0:00:36.9]}
27... Bxb3 {[%clk 0:01:07.9]} 28. axb3 {[%clk 0:00:36.4]} 28... f6 {[%clk
0:01:08.1]} 29. g6 {[%clk 0:00:22]} 29... Kg7 {[%clk 0:01:07.4]} 30. Nf7 {[%clk
0:00:21.8]} 30... Rde8 {[%clk 0:00:46.1]} 31. h5 {[%clk 0:00:20.4]} 31... d5
{[%clk 0:00:40]} 32. exd5 {[%clk 0:00:14.3]} 32... Re2 {[%clk 0:00:38.8]} 33.
Rg1 {[%clk 0:00:13.2]} 33... Rxf7 {[%clk 0:00:34.3]} 34. gxf7+ {[%clk
0:00:14.1]} 34... Kxf7 {[%clk 0:00:34.4]} 35. h6 {[%clk 0:00:13.3]} 35... Rh2
{[%clk 0:00:33.4]} 36. Rg7+ {[%clk 0:00:13.4]} 36... Kf8 {[%clk 0:00:31.3]} 37.
Rxc7 {[%clk 0:00:13.8]} 37... Rxh6 {[%clk 0:00:30.9]} 38. Rxb7 {[%clk
0:00:14.1]} 38... Rh2 {[%clk 0:00:29.5]} 39. c4 {[%clk 0:00:12]} 39... Rf2+
{[%clk 0:00:25.7]} 40. Ke3 {[%clk 0:00:11.9]} 40... Rxb2 {[%clk 0:00:25.7]} 41.
c5 {[%clk 0:00:12.3]} 41... a5 {[%clk 0:00:24.1]} 42. c6 {[%clk 0:00:10.6]}
42... Rc2 {[%clk 0:00:23.2]} 43. c7 {[%clk 0:00:10.3]} 43... Ke8 {[%clk
0:00:22.6]} 44. Rb8+ {[%clk 0:00:07.7]} 44... Kd7 {[%clk 0:00:22.5]} 45. c8=Q+
{[%clk 0:00:08]} 45... Rxc8 {[%clk 0:00:22]} 46. Rxc8 {[%clk 0:00:08.9]} 46...
Kxc8 {[%clk 0:00:22.7]} 47. Kd4 {[%clk 0:00:08.2]} 47... Kd7 {[%clk 0:00:22.6]}
48. Kc5 {[%clk 0:00:08.7]} 48... f5 {[%clk 0:00:21.7]} 49. Kd4 {[%clk
0:00:09.2]} 49... Kd6 {[%clk 0:00:22.1]} 50. Kc4 {[%clk 0:00:07.2]} 50... f4
{[%clk 0:00:19.1]} 51. Kd4 {[%clk 0:00:07.6]} 51... f3 {[%clk 0:00:19.2]} 52.
Ke3 {[%clk 0:00:07.9]} 52... Kxd5 {[%clk 0:00:19.9]} 53. Kxf3 {[%clk 0:00:08.5]}
53... Kd4 {[%clk 0:00:20.4]} 54. Ke2 {[%clk 0:00:09]} 54... Kc3 {[%clk
0:00:19.7]} 55. Ke3 {[%clk 0:00:09.6]} 55... Kxb3 {[%clk 0:00:20.3]} 56. d4
{[%clk 0:00:10.2]} 56... a4 {[%clk 0:00:20.9]} 57. d5 {[%clk 0:00:11.1]} 57...
a3 {[%clk 0:00:21.5]} 58. d6 {[%clk 0:00:11.9]} 58... a2 {[%clk 0:00:22.1]} 59.
d7 {[%clk 0:00:12.5]} 59... a1=Q {[%clk 0:00:22.1]} 60. d8=Q {[%clk 0:00:13.4]}
60... Qe1+ {[%clk 0:00:22.5]} 61. Kf4 {[%clk 0:00:13]} 61... Qf1+ {[%clk
0:00:22.8]} 62. Ke4 {[%clk 0:00:13]} 62... Qh1+ {[%clk 0:00:22.8]} 63. Ke3
{[%clk 0:00:13.1]} 63... Qh3+ {[%clk 0:00:22.3]} 64. Kf4 {[%clk 0:00:11.7]}
64... Qf1+ {[%clk 0:00:21]} 65. Ke3 {[%clk 0:00:11.9]} 65... Qe1+ {[%clk
0:00:20.9]} 66. Kf3 {[%clk 0:00:12.2]} 66... Qf1+ {[%clk 0:00:21.3]} 67. Ke3
{[%clk 0:00:12.7]} 67... Qg1+ {[%clk 0:00:20.8]} 68. Ke2 {[%clk 0:00:12.9]}
68... Qg2+ {[%clk 0:00:20.3]} 69. Kd1 {[%clk 0:00:13.1]} 69... Qf1+ {[%clk
0:00:20.2]} 70. Kd2 {[%clk 0:00:13.4]} 70... Qf4+ {[%clk 0:00:20]} 71. Kd1
{[%clk 0:00:13.1]} 71... Qg4+ {[%clk 0:00:19.2]} 72. Ke1 {[%clk 0:00:13.1]}
72... Qb4+ {[%clk 0:00:19.5]} 73. Ke2 {[%clk 0:00:12.2]} 73... Qe4+ {[%clk
0:00:18.4]} 74. Kd2 {[%clk 0:00:12.1]} 74... Qf4+ {[%clk 0:00:17.1]} 75. Ke2
{[%clk 0:00:10.3]} 75... Qh2+ {[%clk 0:00:15.1]} 76. Kf1 {[%clk 0:00:10.1]}
76... Qh1+ {[%clk 0:00:13.6]} 77. Kf2 {[%clk 0:00:10.6]} 77... Qh4+ {[%clk
0:00:13]} 78. Qxh4 {[%clk 0:00:09.1]} 1-0

[Event "Late-Titled-Tuesday-Blitz-January-30-2024"]
[Site "Chess.com"]
[Date "2024.01.30"]
[Round "9"]
[White "malakismayil"]
[Black "KorolDimitriy75"]
[Result "1-0"]
[WhiteElo "2531"]
[BlackElo "2358"]
[TimeControl "180+1"]
[EndTime "15:46:01 PST"]
[Termination "malakismayil won by resignation"]

1. e4 {[%clk 0:02:56.3]} 1... c5 {[%clk 0:03:00]} 2. Nf3 {[%clk 0:02:54.9]} 2...
d6 {[%clk 0:03:00.2]} 3. Bb5+ {[%clk 0:02:54.6]} 3... Nd7 {[%clk 0:02:59.9]} 4.
O-O {[%clk 0:02:51.2]} 4... Nf6 {[%clk 0:02:59.8]} 5. Re1 {[%clk 0:02:49.9]}
5... a6 {[%clk 0:03:00.1]} 6. Bf1 {[%clk 0:02:49.3]} 6... e5 {[%clk 0:02:59.5]}
7. c3 {[%clk 0:02:48.4]} 7... Be7 {[%clk 0:02:59.6]} 8. d4 {[%clk 0:02:48.5]}
8... O-O {[%clk 0:03:00.5]} 9. Bg5 {[%clk 0:02:47]} 9... Re8 {[%clk 0:02:58.9]}
10. Nbd2 {[%clk 0:02:46.5]} 10... Qc7 {[%clk 0:02:58.6]} 11. Rc1 {[%clk
0:02:43.6]} 11... b6 {[%clk 0:02:49.2]} 12. Nh4 {[%clk 0:02:06]} 12... Bb7
{[%clk 0:02:42]} 13. Nf5 {[%clk 0:02:03.1]} 13... Bf8 {[%clk 0:02:42.2]} 14. f3
{[%clk 0:01:57.9]} 14... h6 {[%clk 0:02:30.3]} 15. Bh4 {[%clk 0:01:55.1]} 15...
g6 {[%clk 0:02:26.2]} 16. Ne3 {[%clk 0:01:51.2]} 16... b5 {[%clk 0:02:00.9]} 17.
Bg3 {[%clk 0:01:38.6]} 17... Rad8 {[%clk 0:01:45]} 18. a4 {[%clk 0:01:37.9]}
18... c4 {[%clk 0:01:44.2]} 19. axb5 {[%clk 0:01:35.4]} 19... axb5 {[%clk
0:01:44.1]} 20. b3 {[%clk 0:01:35.8]} 20... d5 {[%clk 0:01:26.8]} 21. bxc4
{[%clk 0:01:28.4]} 21... dxc4 {[%clk 0:01:19.6]} 22. Rb1 {[%clk 0:01:25.8]}
22... Ba6 {[%clk 0:01:02.8]} 23. Ra1 {[%clk 0:01:21.1]} 23... Qc6 {[%clk
0:00:53.4]} 24. d5 {[%clk 0:01:18.9]} 24... Qb7 {[%clk 0:00:48.9]} 25. Rb1
{[%clk 0:01:16.7]} 25... Qc7 {[%clk 0:00:46.9]} 26. Bf2 {[%clk 0:01:10.4]} 26...
Bc5 {[%clk 0:00:46.5]} 27. h3 {[%clk 0:01:06.5]} 27... Kg7 {[%clk 0:00:46.1]}
28. Nc2 {[%clk 0:01:01.4]} 28... Bxf2+ {[%clk 0:00:42.3]} 29. Kxf2 {[%clk
0:01:02.3]} 29... Nc5 {[%clk 0:00:32.8]} 30. Nb4 {[%clk 0:01:00.1]} 30... Bb7
{[%clk 0:00:32.1]} 31. Kg1 {[%clk 0:00:53.5]} 31... Ra8 {[%clk 0:00:28]} 32. Ra1
{[%clk 0:00:51.9]} 32... Red8 {[%clk 0:00:27.4]} 33. Qe2 {[%clk 0:00:46.3]}
33... Ne8 {[%clk 0:00:25.9]} 34. Qf2 {[%clk 0:00:44]} 34... Nd6 {[%clk
0:00:24.5]} 35. Qg3 {[%clk 0:00:41.2]} 35... Qe7 {[%clk 0:00:23.8]} 36. Qf2
{[%clk 0:00:34]} 36... Qc7 {[%clk 0:00:23.8]} 37. f4 {[%clk 0:00:29.2]} 37...
Re8 {[%clk 0:00:18.7]} 38. Rxa8 {[%clk 0:00:24.6]} 38... Bxa8 {[%clk 0:00:18.3]}
39. fxe5 {[%clk 0:00:19.7]} 39... Rxe5 {[%clk 0:00:19.2]} 40. Qd4 {[%clk
0:00:19.6]} 40... Nd7 {[%clk 0:00:17.8]} 41. Nf3 {[%clk 0:00:19.4]} 41... f6
{[%clk 0:00:15.8]} 42. Nxe5 {[%clk 0:00:19.5]} 42... fxe5 {[%clk 0:00:14.5]} 43.
Qf2 {[%clk 0:00:16]} 43... Nf6 {[%clk 0:00:14.3]} 44. Ra1 {[%clk 0:00:14.9]}
44... Nfxe4 {[%clk 0:00:12.6]} 45. Qe3 {[%clk 0:00:11.5]} 45... Bb7 {[%clk
0:00:12.5]} 46. Ra7 {[%clk 0:00:10.7]} 46... Qc8 {[%clk 0:00:10.5]} 47. Be2
{[%clk 0:00:09.3]} 47... h5 {[%clk 0:00:09.6]} 48. Bf3 {[%clk 0:00:09.3]} 48...
Qb8 {[%clk 0:00:07.4]} 49. Bxe4 {[%clk 0:00:07.9]} 49... Nxe4 {[%clk 0:00:07]}
50. Rxb7+ {[%clk 0:00:08.3]} 50... Qxb7 {[%clk 0:00:07.1]} 51. Qxe4 {[%clk
0:00:09.2]} 51... Qb6+ {[%clk 0:00:07.1]} 52. Kh2 {[%clk 0:00:07.2]} 52... Qf6
{[%clk 0:00:06.9]} 53. Nc6 {[%clk 0:00:06.6]} 53... Kh7 {[%clk 0:00:06.3]} 54.
Qxe5 {[%clk 0:00:05.3]} 54... Qf2 {[%clk 0:00:06]} 55. Qe7+ {[%clk 0:00:04.8]}
55... Kh6 {[%clk 0:00:05.9]} 56. Qe4 {[%clk 0:00:04.2]} 56... b4 {[%clk
0:00:05.3]} 57. Nxb4 {[%clk 0:00:04.1]} 57... h4 {[%clk 0:00:05.6]} 58. Qd4
{[%clk 0:00:02.6]} 58... Qg3+ {[%clk 0:00:05.2]} 59. Kh1 {[%clk 0:00:02.9]}
59... Qe1+ {[%clk 0:00:05.4]} 60. Qg1 {[%clk 0:00:03.6]} 60... Qxc3 {[%clk
0:00:05.7]} 61. Nc6 {[%clk 0:00:03.4]} 61... Qd3 {[%clk 0:00:05.4]} 62. Qc1+
{[%clk 0:00:03.4]} 62... Kg7 {[%clk 0:00:05]} 63. Nb4 {[%clk 0:00:03.5]} 63...
Qd4 {[%clk 0:00:04.1]} 64. Qe1 {[%clk 0:00:02.6]} 64... c3 {[%clk 0:00:03.8]}
65. Nc2 {[%clk 0:00:02.1]} 65... Qd2 {[%clk 0:00:03.7]} 66. Qxd2 {[%clk
0:00:01.9]} 66... cxd2 {[%clk 0:00:04.6]} 67. Ne3 {[%clk 0:00:02.8]} 67... Kf6
{[%clk 0:00:04.9]} 68. Kg1 {[%clk 0:00:03.5]} 68... Ke5 {[%clk 0:00:05.5]} 69.
Kf2 {[%clk 0:00:04.2]} 69... Kd4 {[%clk 0:00:05.9]} 70. Ke2 {[%clk 0:00:04.7]}
70... g5 {[%clk 0:00:05.6]} 71. Kxd2 {[%clk 0:00:04.9]} 71... Ke4 {[%clk
0:00:05.4]} 72. Ke2 {[%clk 0:00:05.3]} 72... g4 {[%clk 0:00:06.3]} 73. hxg4
{[%clk 0:00:05.1]} 73... h3 {[%clk 0:00:06]} 74. gxh3 {[%clk 0:00:06]} 74... Ke5
{[%clk 0:00:06.7]} 75. Kf3 {[%clk 0:00:06.1]} 75... Kd6 {[%clk 0:00:07.6]} 76.
Kf4 {[%clk 0:00:06.4]} 1-0

[Event "Late-Titled-Tuesday-Blitz-January-30-2024"]
[Site "Chess.com"]
[Date "2024.01.30"]
[Round "9"]
[White "Hikaru"]
[Black "HansOnTwitch"]
[Result "0-1"]
[WhiteElo "3293"]
[BlackElo "3227"]
[TimeControl "180+1"]
[EndTime "15:46:30 PST"]
[Termination "HansOnTwitch won by resignation"]

1. e4 {[%clk 0:03:00.9]} 1... c6 {[%clk 0:03:00.4]} 2. Nc3 {[%clk 0:03:00.8]}
2... d5 {[%clk 0:03:00.5]} 3. Nf3 {[%clk 0:03:00.1]} 3... Bg4 {[%clk 0:03:00.5]}
4. h3 {[%clk 0:03:00]} 4... Bxf3 {[%clk 0:03:00.9]} 5. Qxf3 {[%clk 0:03:00.9]}
5... e6 {[%clk 0:03:01.5]} 6. g3 {[%clk 0:03:01.5]} 6... Nd7 {[%clk 0:02:53.1]}
7. Qe2 {[%clk 0:02:58.6]} 7... d4 {[%clk 0:02:49.5]} 8. Nd1 {[%clk 0:02:58.7]}
8... h5 {[%clk 0:02:48]} 9. h4 {[%clk 0:02:57.4]} 9... e5 {[%clk 0:02:46.9]} 10.
Bh3 {[%clk 0:02:57.3]} 10... Bd6 {[%clk 0:02:43.8]} 11. d3 {[%clk 0:02:52]}
11... Ne7 {[%clk 0:02:34]} 12. c3 {[%clk 0:02:47.8]} 12... c5 {[%clk 0:02:32.6]}
13. O-O {[%clk 0:02:47.6]} 13... Nc6 {[%clk 0:02:26.6]} 14. c4 {[%clk
0:02:46.2]} 14... Qe7 {[%clk 0:02:20.5]} 15. a3 {[%clk 0:02:44.9]} 15... a5
{[%clk 0:02:18.4]} 16. b3 {[%clk 0:02:44]} 16... g6 {[%clk 0:02:18]} 17. Bg5
{[%clk 0:02:36]} 17... f6 {[%clk 0:02:18.1]} 18. Bd2 {[%clk 0:02:36.3]} 18...
Kd8 {[%clk 0:02:15.4]} 19. f4 {[%clk 0:02:32.1]} 19... Kc7 {[%clk 0:02:10.7]}
20. Nf2 {[%clk 0:02:28.6]} 20... Raf8 {[%clk 0:01:51.7]} 21. Rae1 {[%clk
0:02:26.2]} 21... Kb8 {[%clk 0:01:46.7]} 22. Kg2 {[%clk 0:02:15]} 22... Bc7
{[%clk 0:01:43.3]} 23. f5 {[%clk 0:02:04.8]} 23... g5 {[%clk 0:01:43.2]} 24.
hxg5 {[%clk 0:02:05.7]} 24... fxg5 {[%clk 0:01:44]} 25. g4 {[%clk 0:02:06.4]}
25... h4 {[%clk 0:01:41]} 26. Rb1 {[%clk 0:01:53.4]} 26... Bd6 {[%clk 0:01:40]}
27. Rb2 {[%clk 0:01:53]} 27... Kc7 {[%clk 0:01:34.2]} 28. Rfb1 {[%clk
0:01:52.8]} 28... Ra8 {[%clk 0:01:34.2]} 29. Kh1 {[%clk 0:01:43.4]} 29... Rhg8
{[%clk 0:01:31]} 30. Bf1 {[%clk 0:01:42.8]} 30... Nf6 {[%clk 0:01:30.2]} 31. Nh3
{[%clk 0:01:41.4]} 31... Nh7 {[%clk 0:01:29.4]} 32. Qd1 {[%clk 0:01:39.9]} 32...
Ra6 {[%clk 0:01:25.7]} 33. Be2 {[%clk 0:01:39.6]} 33... Raa8 {[%clk 0:01:18.8]}
34. Qc1 {[%clk 0:01:40.1]} 34... b6 {[%clk 0:01:13.2]} 35. Ra2 {[%clk
0:01:38.6]} 35... Qf6 {[%clk 0:01:08.7]} 36. Rba1 {[%clk 0:01:38.7]} 36... Be7
{[%clk 0:01:07.6]} 37. Be1 {[%clk 0:01:29.5]} 37... Qd6 {[%clk 0:01:06.5]} 38.
Bf3 {[%clk 0:01:26.3]} 38... Kb7 {[%clk 0:01:01.3]} 39. Bf2 {[%clk 0:01:25.1]}
39... Kc7 {[%clk 0:01:01]} 40. Bg1 {[%clk 0:01:25.7]} 40... a4 {[%clk
0:00:58.5]} 41. bxa4 {[%clk 0:01:08.8]} 41... Rxa4 {[%clk 0:00:59.4]} 42. Bd1
{[%clk 0:01:06]} 42... Ra7 {[%clk 0:00:58.6]} 43. Bf2 {[%clk 0:01:05.2]} 43...
Rga8 {[%clk 0:00:54.5]} 44. a4 {[%clk 0:01:00.7]} 44... Nb4 {[%clk 0:00:52.8]}
45. Ra3 {[%clk 0:01:01.1]} 45... Qc6 {[%clk 0:00:48.8]} 46. Qb1 {[%clk
0:00:55.7]} 46... Nf6 {[%clk 0:00:43.7]} 47. Kh2 {[%clk 0:00:30.2]} 47... Nh7
{[%clk 0:00:28.3]} 48. Be1 {[%clk 0:00:29.4]} 48... Ra5 {[%clk 0:00:28.5]} 49.
Nf2 {[%clk 0:00:26.5]} 49... Kd8 {[%clk 0:00:26.8]} 50. Kh3 {[%clk 0:00:26.4]}
50... Ke8 {[%clk 0:00:26.4]} 51. Bb3 {[%clk 0:00:26.2]} 51... Kf8 {[%clk
0:00:26.6]} 52. Qd1 {[%clk 0:00:26.7]} 52... Kg7 {[%clk 0:00:26.1]} 53. Qe2
{[%clk 0:00:24.4]} 53... R5a7 {[%clk 0:00:25.5]} 54. Bd2 {[%clk 0:00:24.9]}
54... Bf6 {[%clk 0:00:24.1]} 55. Kg2 {[%clk 0:00:25.2]} 55... Be7 {[%clk
0:00:22.1]} 56. Nh3 {[%clk 0:00:25.7]} 56... Bf6 {[%clk 0:00:20.9]} 57. Ng1
{[%clk 0:00:26]} 57... Qd6 {[%clk 0:00:20.6]} 58. Kh3 {[%clk 0:00:26.3]} 58...
Qe7 {[%clk 0:00:19.3]} 59. Nf3 {[%clk 0:00:26.5]} 59... Nf8 {[%clk 0:00:19.5]}
60. Bd1 {[%clk 0:00:21.5]} 60... Nh7 {[%clk 0:00:19.7]} 61. Bc1 {[%clk
0:00:21.4]} 61... Qd8 {[%clk 0:00:17]} 62. Qb2 {[%clk 0:00:21.8]} 62... Qc7
{[%clk 0:00:15.1]} 63. Bd2 {[%clk 0:00:22.3]} 63... Qd6 {[%clk 0:00:10.8]} 64.
Be2 {[%clk 0:00:21.6]} 64... Be7 {[%clk 0:00:09.4]} 65. Qb1 {[%clk 0:00:21.3]}
65... Bf6 {[%clk 0:00:09]} 66. Qd1 {[%clk 0:00:20.2]} 66... Be7 {[%clk
0:00:08.4]} 67. Ne1 {[%clk 0:00:20.9]} 67... Bf6 {[%clk 0:00:08.2]} 68. Nc2
{[%clk 0:00:21.3]} 68... Nc6 {[%clk 0:00:07.5]} 69. Rb1 {[%clk 0:00:21]} 69...
Bd8 {[%clk 0:00:08.1]} 70. Rba1 {[%clk 0:00:21.2]} 70... Be7 {[%clk 0:00:06.4]}
71. Qb1 {[%clk 0:00:21.5]} 71... Bd8 {[%clk 0:00:07]} 72. Bd1 {[%clk 0:00:21.2]}
72... Nf8 {[%clk 0:00:07.2]} 73. Ne1 {[%clk 0:00:20.8]} 73... Nh7 {[%clk
0:00:07.4]} 74. Nf3 {[%clk 0:00:20.9]} 74... Nb4 {[%clk 0:00:07.5]} 75. Be1
{[%clk 0:00:19.2]} 75... Be7 {[%clk 0:00:07.2]} 76. Bf2 {[%clk 0:00:19.8]} 76...
Bd8 {[%clk 0:00:06.6]} 77. Bg1 {[%clk 0:00:20]} 77... Bf6 {[%clk 0:00:06.6]} 78.
Bh2 {[%clk 0:00:20.7]} 78... Nf8 {[%clk 0:00:05.9]} 79. Ne1 {[%clk 0:00:20.7]}
79... Qc6 {[%clk 0:00:04.6]} 80. Nc2 {[%clk 0:00:20.3]} 80... Nxd3 {[%clk
0:00:03.8]} 81. Rxd3 {[%clk 0:00:21.2]} 81... Qxe4 {[%clk 0:00:04.3]} 82. Raa3
{[%clk 0:00:20.4]} 82... Qc6 {[%clk 0:00:04.5]} 83. Rdb3 {[%clk 0:00:18.5]}
83... Nd7 {[%clk 0:00:04]} 84. Bf3 {[%clk 0:00:19]} 84... e4 {[%clk 0:00:04.3]}
85. Nxd4 {[%clk 0:00:19.7]} 85... cxd4 {[%clk 0:00:03.9]} 86. Bxe4 {[%clk
0:00:20.2]} 86... Qxc4 {[%clk 0:00:04.6]} 87. Bxa8 {[%clk 0:00:19.9]} 87... Rxa8
{[%clk 0:00:05.5]} 88. Qd3 {[%clk 0:00:19.5]} 88... Qd5 {[%clk 0:00:05.9]} 89.
Qf3 {[%clk 0:00:19.6]} 89... Qxf3+ {[%clk 0:00:05.7]} 90. Rxf3 {[%clk
0:00:20.5]} 90... Nc5 {[%clk 0:00:06.4]} 91. Bg1 {[%clk 0:00:19.6]} 91... Rd8
{[%clk 0:00:04.4]} 92. a5 {[%clk 0:00:17.9]} 92... d3 {[%clk 0:00:04.3]} 93.
Bxc5 {[%clk 0:00:15.4]} 93... d2 {[%clk 0:00:04.4]} 94. Rad3 {[%clk 0:00:15.9]}
94... bxc5 {[%clk 0:00:02]} 95. Rxd8 {[%clk 0:00:14.7]} 95... Bxd8 {[%clk
0:00:02.9]} 96. a6 {[%clk 0:00:15.5]} 96... d1=Q {[%clk 0:00:02.8]} 0-1

[Event "Late-Titled-Tuesday-Blitz-January-30-2024"]
[Site "Chess.com"]
[Date "2024.01.30"]
[Round "9"]
[White "ameetghasi100"]
[Black "Alexei_Gubajdullin"]
[Result "0-1"]
[WhiteElo "2734"]
[BlackElo "2637"]
[TimeControl "180+1"]
[EndTime "15:46:31 PST"]
[Termination "Alexei_Gubajdullin won on time"]

1. Nf3 {[%clk 0:02:34.6]} 1... Nf6 {[%clk 0:02:58.2]} 2. d4 {[%clk 0:02:35.1]}
2... d5 {[%clk 0:02:57.9]} 3. Bg5 {[%clk 0:02:35.2]} 3... c6 {[%clk 0:02:55.5]}
4. e3 {[%clk 0:02:35.3]} 4... Nbd7 {[%clk 0:02:53.8]} 5. Nbd2 {[%clk 0:02:35]}
5... g6 {[%clk 0:02:53.4]} 6. c4 {[%clk 0:02:34.9]} 6... Bg7 {[%clk 0:02:52.6]}
7. Rc1 {[%clk 0:02:35]} 7... O-O {[%clk 0:02:52.6]} 8. Be2 {[%clk 0:02:34.9]}
8... Re8 {[%clk 0:02:52.5]} 9. O-O {[%clk 0:02:34.2]} 9... Qb6 {[%clk
0:02:49.7]} 10. Qc2 {[%clk 0:02:29.8]} 10... e5 {[%clk 0:02:45]} 11. dxe5 {[%clk
0:02:29.2]} 11... Nxe5 {[%clk 0:02:44.3]} 12. Nxe5 {[%clk 0:02:29.6]} 12... Rxe5
{[%clk 0:02:43.5]} 13. Nf3 {[%clk 0:02:30]} 13... Bf5 {[%clk 0:02:39.4]} 14. Qa4
{[%clk 0:02:16.3]} 14... Ree8 {[%clk 0:02:31]} 15. Nd4 {[%clk 0:01:50.3]} 15...
Bd7 {[%clk 0:02:25.6]} 16. c5 {[%clk 0:01:40.3]} 16... Qd8 {[%clk 0:01:55.4]}
17. b4 {[%clk 0:01:40.1]} 17... h6 {[%clk 0:01:51.1]} 18. Bh4 {[%clk 0:01:40.2]}
18... g5 {[%clk 0:01:50.5]} 19. Bg3 {[%clk 0:01:40.6]} 19... Ne4 {[%clk
0:01:50.9]} 20. b5 {[%clk 0:01:36.1]} 20... Nxg3 {[%clk 0:01:28.5]} 21. hxg3
{[%clk 0:01:37]} 21... Qc7 {[%clk 0:01:22.1]} 22. bxc6 {[%clk 0:01:33.3]} 22...
bxc6 {[%clk 0:01:21.4]} 23. Bd3 {[%clk 0:01:25.1]} 23... Reb8 {[%clk 0:01:19]}
24. Nf5 {[%clk 0:01:06.4]} 24... Bxf5 {[%clk 0:01:13.1]} 25. Bxf5 {[%clk
0:01:07.3]} 25... Rb5 {[%clk 0:01:02]} 26. Bd3 {[%clk 0:01:06.8]} 26... Ra5
{[%clk 0:01:00.9]} 27. Qc2 {[%clk 0:00:54.7]} 27... Ra3 {[%clk 0:00:52.2]} 28.
Rb1 {[%clk 0:00:45.7]} 28... Rc3 {[%clk 0:00:49.9]} 29. Qd2 {[%clk 0:00:46.1]}
29... Rxc5 {[%clk 0:00:48.5]} 30. Rfc1 {[%clk 0:00:46.4]} 30... Rxc1+ {[%clk
0:00:44]} 31. Rxc1 {[%clk 0:00:47.3]} 31... c5 {[%clk 0:00:38.7]} 32. Bb1 {[%clk
0:00:39.9]} 32... Rd8 {[%clk 0:00:36.5]} 33. Qd3 {[%clk 0:00:40]} 33... c4
{[%clk 0:00:35.6]} 34. Qh7+ {[%clk 0:00:38.2]} 34... Kf8 {[%clk 0:00:35.6]} 35.
Bc2 {[%clk 0:00:38.5]} 35... Rb8 {[%clk 0:00:25.8]} 36. Rd1 {[%clk 0:00:34.9]}
36... Qe5 {[%clk 0:00:25.6]} 37. Kh2 {[%clk 0:00:09.2]} 37... Rb2 {[%clk
0:00:25.1]} 38. a4 {[%clk 0:00:09.5]} 38... a5 {[%clk 0:00:23.6]} 39. Rd4 {[%clk
0:00:09]} 39... Qe6 {[%clk 0:00:19.6]} 40. Rd2 {[%clk 0:00:08.5]} 40... c3
{[%clk 0:00:18.6]} 41. Rd1 {[%clk 0:00:08.1]} 41... Rb4 {[%clk 0:00:17.5]} 42.
Qd3 {[%clk 0:00:07.6]} 42... d4 {[%clk 0:00:15.8]} 43. e4 {[%clk 0:00:03.7]}
43... g4 {[%clk 0:00:14.6]} 44. Qe2 {[%clk 0:00:02.5]} 44... h5 {[%clk 0:00:14]}
45. Kg1 {[%clk 0:00:02.9]} 45... Qe5 {[%clk 0:00:14.1]} 46. Qa6 {[%clk
0:00:02.6]} 46... Kg8 {[%clk 0:00:13.7]} 47. Qc8+ {[%clk 0:00:03.1]} 47... Kh7
{[%clk 0:00:13.7]} 48. Qd7 {[%clk 0:00:03.6]} 48... Rb2 {[%clk 0:00:13.3]} 49.
Bd3 {[%clk 0:00:02.4]} 49... Rd2 {[%clk 0:00:13.2]} 50. Rxd2 {[%clk 0:00:01.2]}
50... cxd2 {[%clk 0:00:13.4]} 51. Bc2 {[%clk 0:00:01.5]} 51... Qc5 {[%clk
0:00:11.9]} 52. Qf5+ {[%clk 0:00:02]} 52... Qxf5 {[%clk 0:00:11.5]} 53. exf5
{[%clk 0:00:02.9]} 53... d3 {[%clk 0:00:11.8]} 54. Bd1 {[%clk 0:00:03.5]} 54...
Bd4 {[%clk 0:00:11.8]} 55. Kf1 {[%clk 0:00:03.8]} 55... Kg7 {[%clk 0:00:12.1]}
56. f3 {[%clk 0:00:04.7]} 56... gxf3 {[%clk 0:00:08.8]} 57. Bxf3 {[%clk
0:00:04.9]} 57... Kh6 {[%clk 0:00:09.1]} 58. Bd1 {[%clk 0:00:05.1]} 58... Kg5
{[%clk 0:00:09.3]} 59. Bf3 {[%clk 0:00:04.5]} 59... f6 {[%clk 0:00:09.5]} 60.
Bd1 {[%clk 0:00:04.6]} 60... Be5 {[%clk 0:00:09.7]} 61. Bf3 {[%clk 0:00:04.1]}
61... Bxg3 {[%clk 0:00:08.9]} 62. Bd1 {[%clk 0:00:04.4]} 62... Bf4 {[%clk
0:00:09.1]} 63. Kf2 {[%clk 0:00:05.3]} 63... h4 {[%clk 0:00:08.4]} 64. Kf3
{[%clk 0:00:04.9]} 64... Kxf5 {[%clk 0:00:08.7]} 65. Kf2 {[%clk 0:00:05.2]}
65... Ke4 {[%clk 0:00:08.8]} 66. Bh5 {[%clk 0:00:03.2]} 66... f5 {[%clk
0:00:08.5]} 67. Bd1 {[%clk 0:00:02.8]} 67... Kd4 {[%clk 0:00:08.8]} 68. Kf3
{[%clk 0:00:03.7]} 68... Be5 {[%clk 0:00:09]} 69. Kf2 {[%clk 0:00:03.7]} 69...
Bf4 {[%clk 0:00:09.2]} 70. Kf3 {[%clk 0:00:04.1]} 70... Bg5 {[%clk 0:00:09.7]}
71. Kf2 {[%clk 0:00:04.5]} 71... Kc3 {[%clk 0:00:10]} 72. Kf3 {[%clk 0:00:02.1]}
72... Kb2 {[%clk 0:00:10.2]} 73. Kf2 {[%clk 0:00:02.4]} 73... Kc1 {[%clk
0:00:10.3]} 74. Bg4 {[%clk 0:00:03.1]} 74... d1=Q {[%clk 0:00:10.5]} 75. Bxf5
{[%clk 0:00:04]} 75... Qd2+ {[%clk 0:00:10]} 76. Kg1 {[%clk 0:00:04.3]} 76...
Qe1+ {[%clk 0:00:09.8]} 77. Kh2 {[%clk 0:00:05.2]} 77... Be3 {[%clk 0:00:09.6]}
78. Bxd3 {[%clk 0:00:05.2]} 78... Qg3+ {[%clk 0:00:09.3]} 79. Kh1 {[%clk
0:00:05.2]} 79... h3 {[%clk 0:00:09.3]} 80. Bf1 {[%clk 0:00:06.1]} 80... Qf2
{[%clk 0:00:09.2]} 81. Kh2 {[%clk 0:00:06.3]} 81... Qxf1 {[%clk 0:00:09]} 82.
Kxh3 {[%clk 0:00:07.2]} 82... Qf4 {[%clk 0:00:09]} 83. g3 {[%clk 0:00:07.4]}
83... Qg5 {[%clk 0:00:09.2]} 84. Kg2 {[%clk 0:00:08.3]} 84... Bd4 {[%clk
0:00:09.5]} 0-1